Cogmind - Beta 11.1 @@@ ROGUE MODE // 2022.09.19 @ 09:15:13 Player: Flerik Result: Destroyed by Y-45 Defender with Beam Rifle Performance ------------- Evolutions (2) 1000 Regions Visited (6) 1200 Robots Destroyed (4) 20 Value Destroyed (33) 33 Prototype IDs (0) 0 Alien Tech Used (0) 0 Bonus (0) 0 TOTAL SCORE: 2253 Bonus ------- None Cogmind --------- Core Integrity 0/550 Matter 220/300 Energy 98/100 System Corruption 0% Temperature Cool (9) Movement Core (50) Location -8/Storage Parts ------- > --- POWER (1) -------- (None) > --- PROPULSION (4) --- (None) > --- UTILITY (4) ------ (None) > --- WEAPON (2) ------- (None) > --- INVENTORY (5) ---- Light Ion Engine Improved VTOL Module Light Cannon Grenade Launcher Datajack Peak State ------------ > --- POWER ------------ Ion Engine > --- PROPULSION ------- Cesium-ion Thruster Cesium-ion Thruster Cesium-ion Thruster Cesium-ion Thruster > --- UTILITY ---------- Small Storage Unit Improved Terrain Scanner Improved Targeting Computer ECM Suite > --- WEAPON ----------- Assault Rifle Flail > --- INVENTORY -------- Light Ion Engine Light Ion Engine Wheel Improved VTOL Module Small Storage Unit Grenade Launcher Datajack [Rating: 24] Favorites ----------- Power Ion Engine Engine Ion Engine Propulsion Cesium-ion Thruster Leg Aluminum Leg Wheel Wheel Flight Unit Cesium-ion Thruster Utility Small Storage Unit Device Improved Terrain Scanner Storage Small Storage Unit Processor Improved Targeting Computer Protection Hardened Medium Armor Plating Weapon Assault Rifle Energy Gun Medium Laser Ballistic Gun Assault Rifle Impact Weapon Flail Build | -11 -10 -10 -9 -9 -8 -8 ------- Run | Scr Mat Min Mat Min Mat Sto Slots Evolved 4 | . . . 2 . 2 . Power . | . . . . . . . Propulsion 2 | . . . 2 . . . Utility 2 | . . . . . 2 . Weapon . | . . . . . . . Parts Attached 20 | 6 1 . 4 . 6 3 Power 1 | 1 . . . . . . Engine 1 | 1 . . . . . . Core . | . . . . . . . Reactor . | . . . . . . . Propulsion 9 | 1 1 . 4 . 1 2 Treads . | . . . . . . . Leg 2 | 1 1 . . . . . Wheel 1 | . . . . . . 1 Hover . | . . . . . . . Flight 6 | . . . 4 . 1 1 Utility 6 | 2 . . . . 4 . Device 2 | 1 . . . . 1 . Storage 2 | 1 . . . . 1 . Processor 1 | . . . . . 1 . Hackware . | . . . . . . . Protection 1 | . . . . . 1 . Artifact . | . . . . . . . Weapon 4 | 2 . . . . 1 1 Energy Gun 1 | 1 . . . . . . Energy Cannon . | . . . . . . . Ballistic Gun 2 | 1 . . . . 1 . Ballistic Cannon . | . . . . . . . Launcher . | . . . . . . . Special Weapon . | . . . . . . . Impact Weapon 1 | . . . . . . 1 Slashing Weapon . | . . . . . . . Piercing Weapon . | . . . . . . . Special Melee Weapon . | . . . . . . . Unidentified Prototypes . | . . . . . . . Parts Lost 13 | . . . . . . 13 Power 1 | . . . . . . 1 Propulsion 6 | . . . . . . 6 Utility 4 | . . . . . . 4 Weapon 2 | . . . . . . 2 Highest Loss Streak 13 | . . . . . . 13 To Critical Strikes . | . . . . . . . Average Slot Usage (%) 87 | . 100 100 85 100 85 56 Engine 11 | . 14 14 11 11 9 4 Leg 14 | . 28 28 5 . . . Flight 13 | . . . 24 44 36 18 Device 12 | . 14 14 11 11 10 9 Storage 11 | . 14 14 11 11 9 5 Processor 1 | . . . . . 1 4 Energy Gun 10 | . 14 14 11 11 9 . Ballistic Gun 10 | . 14 14 11 11 9 4 Impact Weapon 1 | . . . . . . 6 Naked Turns 36 | . . . . . . 36 Heaviest Build 20 | 15 15 15 15 15 20 17 Greatest Support 20 | 10 20 20 20 20 20 20 Greatest Overweight (x) 3 | 3 . . 2 . . 2 Average Overweight (x) . | 1 . . . . . . Largest Inventory Capacity 8 | 8 8 8 8 8 8 8 Average Capacity 7 | 7 8 8 8 8 8 6 Most Carried 8 | 7 7 8 8 8 8 8 Average Carried 6 | 4 6 7 8 8 7 6 Final Capacity 8 | 8 8 8 8 8 8 5 Final Carried 8 | 7 7 8 8 8 8 5 Class Distribution -------------------- 74% | Mutant 25% | Sprinter Dominant Class ---------------- Mutant | -10/Materials Mutant | -10/Mines Sprinter | -9/Materials Sprinter | -9/Mines Sprinter | -8/Materials Mutant | -8/Storage Resources | -11 -10 -10 -9 -9 -8 -8 ----------- Run | Scr Mat Min Mat Min Mat Sto Matter Collected 254 | 227 . . . . . 27 Remotely . | . . . . . . . Salvage Created 114 | 87 . . . . . 27 Parts 8 | 6 . . . . . 2 Haulers Intercepted . | . . . . . . . Recyclers Shooed 1 | 1 . . . . . . Parts Field Recycled . | . . . . . . . Retrieved Matter . | . . . . . . . Parts Self-Destructed . | . . . . . . . Prevented . | . . . . . . . Kills | -11 -10 -10 -9 -9 -8 -8 ------- Run | Scr Mat Min Mat Min Mat Sto Combat Hostiles Destroyed 2 | . . . . . . 2 Melee 2 | . . . . . . 2 Classes Destroyed 3 | 2 . . . . . 1 Tunneler 1 | 1 . . . . . . Recycler 1 | 1 . . . . . . Swarmer 2 | . . . . . . 2 Best Kill Streak 2 | 1 . . . . . 2 Combat Bots Only 2 | . . . . . . 2 Max Kills in Single Turn 1 | 1 . . . . . 1 Gunslinging . | . . . . . . . Exploded . | . . . . . . . Melee 1 | . . . . . . 1 Uniques/NPCs Destroyed . | . . . . . . . Combat | -11 -10 -10 -9 -9 -8 -8 -------- Run | Scr Mat Min Mat Min Mat Sto Damage Taken 1363 | . 13 . 38 . 129 1183 Core 557 | . . . . . . 557 Absorbed by Shields 206 | . . . . . . 206 Core Remaining (%) 100 | 100 . 100 . 100 . . Volleys Fired 13 | 12 . . 1 . . . Largest 2 | 1 . . 2 . . . Hottest 70 | 50 . . 70 . . . Shots Fired 14 | 12 . . 2 . . . Gun 14 | 12 . . 2 . . . Cannon . | . . . . . . . Launcher . | . . . . . . . Special . | . . . . . . . Kinetic 1 | . . . 1 . . . Thermal 13 | 12 . . 1 . . . Explosive . | . . . . . . . Electromagnetic . | . . . . . . . Robot Hit Streak 9 | 9 . . 3 . . . Robot Miss Streak 1 | 1 . . . . . . Penetration Max . | . . . . . . . Secondary Targets . | . . . . . . . Shots Hit Robots 16 | 10 . . 2 . . 4 Core Hits 5 | 3 . . 1 . . 1 Critical Kills 1 | . . . . . . 1 Critical Parts Destroyed 1 | . . . . . . 1 Critical Strikes 2 | . . . . . . 2 Smash 2 | . . . . . . 2 Melee Attacks 9 | . . . . . . 9 Impact 9 | . . . . . . 9 Slashing . | . . . . . . . Piercing . | . . . . . . . Sneak Attacks . | . . . . . . . Combat Hostiles . | . . . . . . . Follow-up Attacks . | . . . . . . . Damage Inflicted 272 | 124 . . 27 . . 121 Guns 151 | 124 . . 27 . . . Cannons . | . . . . . . . Explosions . | . . . . . . . Melee 121 | . . . . . . 121 Ramming . | . . . . . . . Kinetic 15 | . . . 15 . . . Thermal 136 | 124 . . 12 . . . Explosive . | . . . . . . . Electromagnetic . | . . . . . . . Impact 121 | . . . . . . 121 Slashing . | . . . . . . . Piercing . | . . . . . . . Highest Corruption . | . . . . . . . Average Corruption . | . . . . . . . Corruption Purged . | . . . . . . . Corruption Blocked . | . . . . . . . Overload Shots . | . . . . . . . Overflow Damage 32 | . . . . . . 32 Projectiles . | . . . . . . . Explosions . | . . . . . . . Melee 32 | . . . . . . 32 Knockbacks . | . . . . . . . Impact . | . . . . . . . Kinetic . | . . . . . . . Secondary . | . . . . . . . Self-Inflicted Damage . | . . . . . . . Shots . | . . . . . . . Rammed 1 | . . . . . 1 . Targets Rammed 1 | . . . . . 1 . Kicked . | . . . . . . . Crushed . | . . . . . . . Highest Temperature 60 | 60 . . 12 . 3 21 Average Temperature 18 | 23 . . 7 . 3 12 Received Heat Transfer 577 | . 9 . 15 . 54 499 Siege Activations . | . . . . . . . Robots Corrupted . | . . . . . . . Combat Hostiles . | . . . . . . . Parts Fried 1 | . . . . . . 1 Impact Corruptions 1 | . . . . . . 1 Robots Melted . | . . . . . . . Combat Hostiles . | . . . . . . . Parts Melted . | . . . . . . . Heat Transferred 407 | 370 . . 37 . . . Parts Sabotaged . | . . . . . . . Parts Stolen . | . . . . . . . Parts Stripped . | . . . . . . . Power Chain Reactions . | . . . . . . . Missiles Intercepted . | . . . . . . . Alert | -11 -10 -10 -9 -9 -8 -8 ------- Run | Scr Mat Min Mat Min Mat Sto Peak Influence 189 | 10 6 1 30 26 189 152 Initial 79 | . 6 1 . 11 9 79 Average 18 | 6 6 1 5 25 44 65 Maximum Alert Level . | . . . . . . . Low Security (%) 100 | 100 100 100 100 100 100 100 Level 1 . | . . . . . . . Level 2 . | . . . . . . . Level 3 . | . . . . . . . Level 4 . | . . . . . . . Level 5 . | . . . . . . . High Security . | . . . . . . . Max Security . | . . . . . . . Squads Dispatched 4 | . . . 1 . 1 2 Investigation . | . . . . . . . Extermination . | . . . . . . . Reinforcement 4 | . . . 1 . 1 2 Assault . | . . . . . . . Garrison . | . . . . . . . Intercept . | . . . . . . . Searches Triggered . | . . . . . . . Construction Impeded . | . . . . . . . Haulers Reinforced . | . . . . . . . Active Scanning Responses . | . . . . . . . Cargo Convoy Interrupts . | . . . . . . . Stealth | -11 -10 -10 -9 -9 -8 -8 --------- Run | Scr Mat Min Mat Min Mat Sto Distress Signals 2 | . . . . . 1 1 Communications Jammed . | . . . . . . . Distress Signals . | . . . . . . . Times Spotted 45 | . 4 . 6 3 14 18 Peak Tracking Total 11 | . 4 . 7 3 10 11 Tactical Retreats 3 | . . . . . 1 2 Traps | -11 -10 -10 -9 -9 -8 -8 ------- Run | Scr Mat Min Mat Min Mat Sto Traps Triggered 3 | . . . . . . 3 Indirectly . | . . . . . . . Trap Hack Attempts . | . . . . . . . Triggered . | . . . . . . . Disarmed . | . . . . . . . Reprogrammed . | . . . . . . . Reused . | . . . . . . . Traps Extracted . | . . . . . . . Installed . | . . . . . . . Triggered . | . . . . . . . Machines | -11 -10 -10 -9 -9 -8 -8 ---------- Run | Scr Mat Min Mat Min Mat Sto Machines Disabled . | . . . . . . . Max in Single Turn . | . . . . . . . Machines Sabotaged . | . . . . . . . Garrisons Compromised . | . . . . . . . Overloaded Fab Kills . | . . . . . . . Hacking | -11 -10 -10 -9 -9 -8 -8 --------- Run | Scr Mat Min Mat Min Mat Sto Machines Accessed 3 | . . . . . 1 2 Terminals 3 | . . . . . 1 2 Fabricators . | . . . . . . . Repair Stations . | . . . . . . . Recycling Units . | . . . . . . . Scanalyzers . | . . . . . . . Garrison Access . | . . . . . . . Total Hacks 7 | . . . . . 2 5 Successful 3 | . . . . . . 3 Failed 4 | . . . . . 2 2 Catastrophic 1 | . . . . . . 1 Database Lockouts . | . . . . . . . Manual 5 | . . . . . 2 3 Terminals 7 | . . . . . 2 5 Fabricators . | . . . . . . . Repair Stations . | . . . . . . . Recycling Units . | . . . . . . . Scanalyzers . | . . . . . . . Garrison Access . | . . . . . . . Terminal Hacks 3 | . . . . . . 3 Robot Schematic 1 | . . . . . . 1 Branch Access Points 1 | . . . . . . 1 Zone Layout 1 | . . . . . . 1 Fabricator Hacks . | . . . . . . . Repair Station Hacks . | . . . . . . . Recycling Unit Hacks . | . . . . . . . Scanalyzer . | . . . . . . . Garrison Access Hacks . | . . . . . . . Unauthorized Hacks . | . . . . . . . Terminals . | . . . . . . . Fabricators . | . . . . . . . Repair Stations . | . . . . . . . Recycling Units . | . . . . . . . Scanalyzers . | . . . . . . . Garrison Access . | . . . . . . . Data Cores Recovered . | . . . . . . . Used . | . . . . . . . Hacking Detections 2 | . . . . . 1 1 Full Trace Events . | . . . . . . . Feedback Events . | . . . . . . . Feedback Blocked . | . . . . . . . Robot Schematics Acquired 1 | . . . . . . 1 Robots Built . | . . . . . . . Authchips . | . . . . . . . Time . | . . . . . . . Total Robot Build Rating . | . . . . . . . Part Schematics Acquired . | . . . . . . . Parts Built . | . . . . . . . Authchips . | . . . . . . . Time . | . . . . . . . Total Part Build Rating . | . . . . . . . Parts Repaired . | . . . . . . . Time . | . . . . . . . Parts Recycled . | . . . . . . . Recycled Matter . | . . . . . . . Retrieved Matter . | . . . . . . . Retrieved Components . | . . . . . . . Parts Scanalyzed . | . . . . . . . Part Schematics Acquired . | . . . . . . . Parts Damaged . | . . . . . . . Bothacking | -11 -10 -10 -9 -9 -8 -8 ------------ Run | Scr Mat Min Mat Min Mat Sto Used RIF Installer . | . . . . . . . Robots Hacked . | . . . . . . . Non-combat . | . . . . . . . Combat . | . . . . . . . Robot Hacks Applied . | . . . . . . . Relay Couplers Released . | . . . . . . . Fabnet Peak Effective % . | . . . . . . . Robots Rewired . | . . . . . . . Allies Hacked . | . . . . . . . Hacks Repelled . | . . . . . . . Allies | -11 -10 -10 -9 -9 -8 -8 -------- Run | Scr Mat Min Mat Min Mat Sto Total Allies . | . . . . . . . Largest Group . | . . . . . . . Highest-Rated Group . | . . . . . . . Highest-Rated Ally . | . . . . . . . Total Orders . | . . . . . . . Ally Attacks . | . . . . . . . Total Damage . | . . . . . . . Kills . | . . . . . . . Allies Corrupted . | . . . . . . . Allies Melted . | . . . . . . . Intel | -11 -10 -10 -9 -9 -8 -8 ------- Run | Scr Mat Min Mat Min Mat Sto Robot Analysis Total . | . . . . . . . Derelict Logs Recovered 1 | . . . . 1 . . Drone Launches . | . . . . . . . Drone Recoveries . | . . . . . . . Exploration | -11 -10 -10 -9 -9 -8 -8 ------------- Run | Scr Mat Min Mat Min Mat Sto Turns Passed 788 | 205 79 223 39 19 106 117 Spaces Moved 893 | 57 65 136 70 73 316 176 Core 84 | 9 . . . . . 75 Treads . | . . . . . . . Legs 256 | 48 65 136 7 . . . Wheels 2 | . . . . . . 2 Hover . | . . . . . . . Flight 551 | . . . 63 73 316 99 Fastest Speed 26 | 50 120 120 26 26 26 26 Average Speed 60 | 181 120 120 39 26 26 37 Slowest Speed 200 | 200 120 120 195 26 26 150 Overloaded Moves . | . . . . . . . Propulsion Burnouts . | . . . . . . . Robots Hopped 4 | . . . 2 1 1 . Cave-ins Triggered . | . . . . . . . Exploration Rate (%) 23 | 5 18 30 11 23 30 50 Regions Visited 6 Branch Regions 3 Pre-discovered Areas . | . . . . . . . Known Exits Taken 1 | . . . . . 1 . Unknown Exits Taken 5 | 1 1 1 1 1 . . Scrap Searched 1 | . . . . 1 . . Spaces Dug . | . . . . . . . Terrain Destroyed . | . . . . . . . Melee . | . . . . . . . Projectile . | . . . . . . . AOE . | . . . . . . . Terrain Rammed . | . . . . . . . Walls Destroyed . | . . . . . . . Machines Disabled . | . . . . . . . Actions | -11 -10 -10 -9 -9 -8 -8 --------- Run | Scr Mat Min Mat Min Mat Sto Total 1103 | 144 66 196 75 71 338 213 Wait 141 | 63 . 60 1 . 10 7 Move 881 | 56 64 135 66 70 314 176 Hop 3 | . . . 1 1 1 . Pick Up 12 | 7 1 1 . . 2 1 Fast Attach 15 | 6 . . 4 . 4 1 Attach 3 | . 1 . . . . 2 Detach . | . . . . . . . Swap 2 | . . . . . 2 . Drop 8 | . . . 2 . 5 1 Fire 13 | 12 . . 1 . . . Melee 9 | . . . . . . 9 Ram . | . . . . . . . Kick . | . . . . . . . Crush . | . . . . . . . Escape Stasis 16 | . . . . . . 16 Rewire . | . . . . . . . Trap . | . . . . . . . Miscellaneous . | . . . . . . . Route ------- -11/Scrapyard -10/Materials (discovered 2 exits: [*Min x2]) -10/Mines -9/Materials -9/Mines (discovered 2 exits: *Mat / [*Zio]) -8/Materials -8/Storage (discovered 1 exit: Rec) History --------- Turn | Location | Event 63 | -11/Scrapyard | Discovered new exit (range 14) 206 | -11/Scrapyard | Entered Materials 219 | -10/Materials | Discovered new exit (range 16) 271 | -10/Materials | Discovered new exit (range 13) 285 | -10/Materials | Entered Mines 303 | -10/Mines | Build established: Mutant 362 | -10/Mines | YI-UF0 nonchalantly dropped a Grenade Launcher on the ground 501 | -10/Mines | Discovered new exit (range 7) 508 | -10/Mines | Entered Materials 508 | -9/Materials | Evolved 2 slots: Propulsion x2 545 | -9/Materials | Discovered new exit (range 7) 547 | -9/Materials | Entered Mines 558 | -9/Mines | A Derelict revealed a hidden shortcut to a safe place 562 | -9/Mines | Discovered new exit (range 15) 566 | -9/Mines | Entered Materials 566 | -8/Materials | Evolved 2 slots: Utility x2 567 | -8/Materials | Identified exit to Storage 672 | -8/Materials | Entered Storage 745 | -8/Storage | Core integrity fell below 50% 755 | -8/Storage | Core integrity fell below 20% 782 | -8/Storage | Identified exit to Recycling 784 | -8/Storage | Lost 13 parts (1p6n4u2w) 789 | -8/Storage | Destroyed by Y-45 Defender with Beam Rifle Last Messages --------------- 00753_ R-06 Scavenger collects Lgt. Ion Engine. 00757_ R-06 Scavenger collects Sml. Storage Unit. 00778_ O-16 Technician: "IFF HANDSHAKE FAILED. SECURING TERMINAL." 00781_ Two rows of pristine grunt class robots stand immobile, all facing the entryway as if waiting for something. 00782_ Connecting with Terminal... >>Schematic(T-07 Excavator) Downloading schematic... T-07 Excavator Tier: 1 Schematic downloaded. >>Layout(Zone) Retrieving Zone 8N layout... Downloaded map data. >>Access(Branch) Found 1 branch access point: (61,59) Recycling Map updated. 00784_ ALERT: Hostiles spotted, dispatching reinforcements to Terminal S013. Map ----- +----------------------------------------------------+ | | | | | | | | | | | | | | | | | | | | | ??????????####??????????????????????????????????? | | ??????????"""#??????????????????????????????????? | | ??????????"Y"####???????????????????????????????? | | ?????????? #???????????????????????????????? | | ??????????""" ####????????????????????????????? | | ??????????""" """#????????????????????#???????? | | ??????????""" R"#????????????????????#???????? | | ?????????? """#????#######?????????#???????? | | ??????????""" ####????# #?????????#???????? | | ??????????""" #???????# #?????????#???????? | | ########??""" #???????#T #?????????#???????? | | !!! #?? #???????## ##?????????#???????? | | #!=! ""#/###a###############+############ #???? | | #!=! T"# Y #???? | | # ""# #???? | | # + Yg Y @ k #???? | | #?? # ###+##+##### ########+#########/#????? | | #####+## ## # #???# ##T ???????? | | + ## ! # #???# """ ###"???????? | | # ## # #???# """ ### ???????? | | # ## """ """ # #???# """ ### ???????? | | + + """ """ # #???# ####???????? | | ######+#### """ """ # #???# """ "####???????? | | #?????# # ##### """ T#??????????? | | #?????# # + """ "#??????????? | | #?????### ####### ##### #??????????? | | # #??#????###?????# #?????????####??????????? | | # #???#???????????# #???????????????????????? | | # #???????????????# #???????????????????????? | | # #???????????????? #???????????????????????? | | # #???????????????? #???????????????????????? | | # #???? #???"?????? ????????????????????????? | | # #?? #?????????????????????????????????????? | | # # #?????????????????????????????????????? | | # +! #?????????????????????????????????????? | | # # #?#???????????????????????????????????? | | # #! #?????????????????????????????????????? | | # + #?????? ??????????????????????????????? | | # # #?????????????????????????????????????? | | # #?? #?????????????????????????????????????? | +----------------------------------------------------+ Best States ------------- Heat Dissipation 31 Energy Generation 10 Energy Capacity 250 Matter Stores 267 Matter Capacity 300 Sight Range 16 Terrain Scan Range 16 Terrain Scan Density 10 ECM Strength 1 Evasion (%) 64 Targeting Accuracy 6 Item Schematics ----------------- None Robot Schematics ------------------ T-07 Excavator | -8/Storage | Hacked Fabricated ------------ Nothing Alien Tech Used ----------------- None Achievements -------------- None Challenges ------------ None Game ------ Seed VisualBiomechanicalWand Manual? 0 Play Time 00:15:10 Cumulative 26.8 hours Start 2022.09.19 @ 09:01:08 End 2022.09.19 @ 09:15:13 Sessions 1 Manual Loads 0 Difficulty Rogue Special Mode None Game No. 41 Rogue 40 Adventurer 1 Explorer 0 Win Type - Total 1 Types 1/0/0/0/0/0/0/0/0 Lore% 32 Gallery% 34 Achievement% 31 Wizard Run 0 Options --------- ASCII 0 Keyboard 0 Movement Numpad Keybinds 0 Fullscreen 1 Font 18/SmallcapsGlow Map View 76x50 Tactical HUD 1 Map Filters NONE Filters NONE Steam 1 RUN: b5b5e8f9-97f0-43ad-92bc-f30505a06de9